[Event "Istanbul Open 2017"]
[Site "Istanbul"]
[Date "2017.09.11"]
[Round "7"]
[White "Bicer, Atakan Mert"]
[Black "Bai, Bashar"]
[Result "1-0"]
[ECO "D06"]
[WhiteElo "1842"]
[BlackElo "1918"]
[Annotator "NA RC"]
[PlyCount "101"]
[EventDate "2017.??.??"]
[EventType "swiss"]
[EventCountry "TUR"]
[SourceTitle "playchess.com"]
[Source "ChessBase"]
[SourceQuality "1"]
[TimeControl "5400+30"]

{[%evp 14,79,62,32767,32767,32767,32767,32767,64,73,71,64,64,8,82,77,93,86,112,117,124,157,112,160,163,201,262,279,250,193,229,123,235,265,421,441,411,468,445,474,458,539,538,579,706,745,794,1049,720,1190,848,1012,882,482,503,554,1063,824,896,1229,1160,1431,1272,925,737,1113,1165,1273]} 1. d4 {[%emt 0:00:30]} d5 {[%emt 0:01:00]} 2. Bf4 {[%emt 0:00:00]} Bf5 {[%emt 0:00:30]} 3. c4 {[%emt 0:00:00]} e6 {[%emt 0:01:30]} 4. Nc3 {[%emt 0:00:30]} c6 {[%emt 0:00:00]} 5. Qb3 {[%emt 0:00:30] D06: Queen's Gambit: Symmetrical and Baltic Defences} (5. e3 Bd6 6. Bxd6 Qxd6 7. Bd3 Bxd3 8. Qxd3 Nf6 9. cxd5 cxd5 10. Nf3 O-O 11. O-O Nc6 12. Rac1 Rac8 13. a3 a6 14. b4 b5 15. Rfd1 Rfd8 16. Ne2 Ne7 17. Rxc8 Rxc8 18. Rc1 Rxc1+ 19. Nxc1 Qc6 20. Ne2 Ne4 21. Nd2 Nxd2 22. Qxd2 {½-½ (22) Pogosyan,G (2375)-Viktorov,A (2414) Dubna 2016}) 5... Qb6 {[%emt 0:01:00]} 6. c5 {[%emt 0:00:00]} Qxb3 {[%emt 0:00:30]} 7. axb3 {[%emt 0:00:00]} Na6 {[%emt 0:02:30]} 8. e4 {[%emt 0:01:30]} Bxe4 {[%emt 0:05:30]} 9. Nxe4 {[%emt 0:00:30]} dxe4 {[%emt 0:00:00]} 10. Bxa6 {[%emt 0:00:30]} bxa6 {[%emt 0:01:00]} 11. Rxa6 {[%emt 0:00:00]} Nf6 {[%emt 0:00:30]} 12. Ne2 {[%emt 0:16:00]} ({Weaker is} 12. Rxc6 Nd5 $15) 12... Nd5 {[%emt 0:00:30]} 13. Kd2 $146 {[%emt 0:00:30]} ({Much worse is} 13. Rxc6 a6 $15) (13. O-O $16) ({Predecessor:} 13. Bg3 Nb4 14. Ra5 Nd3+ 15. Kd2 Be7 16. Rha1 Bf6 17. Ke3 e5 18. Kxe4 Nb4 {1-0 (18) Martin Martin,L (2024)-Lorenzo Bailador,A (1991) Madrid 2016}) 13... g5 {[%emt 0:02:30]} (13... Rd8 $11) 14. Be5 {[%emt 0:04:30]} ({But not} 14. Bxg5 $6 Rg8 $14) 14... f6 {[%emt 0:01:30] [#]} 15. Bg3 $1 {[%emt 0:00:30]} Nb4 {[%emt 0:07:30] [#]} 16. Ra4 $1 {[%emt 0:00:30]} a5 {[%emt 0:00:30]} 17. Rha1 {[%emt 0:00:30]} Rd8 {[%emt 0:01:30]} 18. Rxa5 {[%emt 0:15:30]} e5 {[%emt 0:03:30] [#]} 19. Ra8 $1 {[%emt 0:00:30]} Be7 {[%emt 0:01:30]} (19... Rxa8 {was necessary.} 20. Rxa8+ Kf7 21. dxe5 f5) 20. Rxd8+ {[%emt 0:00:30]} Bxd8 {[%emt 0:00:30]} 21. Ra8 {[%emt 0:01:30]} O-O {[%emt 0:03:30]} (21... h5 $16) 22. Ra4 {[%emt 0:08:30]} ({White should try} 22. dxe5 $18 Be7 23. Rxf8+ Bxf8 24. exf6) 22... Bc7 {[%emt 0:03:30] [#]} (22... h5 $16) 23. Nc3 $1 {[%emt 0:09:30]} ({Weaker is} 23. Rxb4 Ba5 $15) 23... Nd5 $2 {[%emt 0:08:30]} (23... exd4 24. Nxe4 (24. Bxc7 dxc3+ 25. bxc3 Nd3 $16) 24... Bxg3) 24. Nxd5 {[%emt 0:00:30]} cxd5 {[%emt 0:00:30]} 25. Ra7 {[%emt 0:00:30]} Rc8 {[%emt 0:02:30]} 26. b4 {[%emt 0:00:30]} h5 {[%emt 0:01:30]} 27. h3 {[%emt 0:00:30]} h4 {[%emt 0:05:30]} 28. Bh2 {[%emt 0:00:00]} Kf8 {[%emt 0:13:30]} 29. b5 {[%emt 0:00:00]} Ke8 {[%emt 0:07:30]} 30. b6 {[%emt 0:00:30]} Bd8 {[%emt 0:01:30]} 31. b4 {[%emt 0:00:30]} Rb8 {[%emt 0:03:30]} 32. dxe5 {[%emt 0:01:30]} f5 {[%emt 0:00:30]} 33. g3 {[%emt 0:06:30]} hxg3 {[%emt 0:01:30]} 34. Bxg3 {[%emt 0:00:30]} d4 {[%emt 0:03:22]} 35. Rh7 {[%emt 0:05:30]} f4 {[%emt 0:03:11]} 36. Bh2 {[%emt 0:00:30]} Be7 {[%emt 0:01:54]} 37. Rh8+ {[%emt 0:03:30]} Bf8 {[%emt 0:00:19]} 38. e6 {[%emt 0:00:30]} Ke7 {[%emt 0:01:12]} 39. h4 {[%emt 0:02:30]} Kxe6 $18 {[%emt 0:01:18]} 40. hxg5 {[%emt 0:00:30]} e3+ {[%emt 0:05:50]} 41. fxe3 {[%emt 0:00:30]} dxe3+ {[%emt 0:01:07]} 42. Ke2 {[%emt 0:00:30]} Kf5 {[%emt 0:00:36]} 43. Rh4 {[%emt 0:01:30]} f3+ {[%emt 0:03:54]} 44. Kxf3 {[%emt 0:00:00]} Re8 {[%emt 0:01:00]} 45. Rf4+ {[%emt 0:00:00]} Kxg5 {[%emt 0:00:16]} 46. Rxf8 {[%emt 0:01:30]} Rxf8+ {[%emt 0:00:26]} 47. Kxe3 {[%emt 0:00:00]} Rf7 {[%emt 0:01:01]} 48. c6 {[%emt 0:00:00]} Kg4 {[%emt 0:01:09]} 49. b7 {[%emt 0:00:30]} Rf3+ {[%emt 0:00:46]} 50. Ke2 {[%emt 0:00:30]} Rc3 {[%emt 0:00:33]} 51. b8=Q {[%emt 0:00:00]} 1-0

[Event "Istanbul Open 2017"]
[Site "Istanbul"]
[Date "2017.09.11"]
[Round "7"]
[White "Kilic, Eray"]
[Black "Ozbag, Berat"]
[Result "1-0"]
[ECO "C51"]
[WhiteElo "1727"]
[BlackElo "1638"]
[Annotator "NA RC"]
[PlyCount "99"]
[EventDate "2017.??.??"]
[EventType "swiss"]
[EventCountry "TUR"]
[SourceTitle "playchess.com"]
[Source "ChessBase"]
[SourceQuality "1"]
[TimeControl "5400+30"]

1. e4 {[%emt 0:00:30]} e5 {[%emt 0:01:00]} 2. Nf3 {[%emt 0:00:00]} Nc6 {[%emt 0:00:00]} 3. Bc4 {[%emt 0:00:00]} Bc5 {[%emt 0:00:00]} 4. b4 {[%emt 0:00:00]} Bxb4 {[%emt 0:00:00]} 5. c3 {[%emt 0:00:00]} Bd6 {[%emt 0:00:00]} 6. d4 {[%emt 0:01:30]} Nf6 {[%emt 0:02:30]} 7. O-O {[%emt 0:01:30]} O-O {[%emt 0:00:30]} 8. Bg5 {[%emt 0:00:30]} h6 {[%emt 0:01:30]} 9. Bh4 {[%emt 0:00:30]} Re8 {[%emt 0:00:00]} 10. Re1 {[%emt 0:02:30]} g6 {[%emt 0:18:00]} 11. Bd5 {[%emt 0:20:30]} Be7 {[%emt 0:09:30]} 12. Bxc6 {[%emt 0:14:30]} dxc6 {[%emt 0:01:30]} 13. Nxe5 {[%emt 0:00:30]} Nd7 {[%emt 0:08:30]} 14. Bg3 {[%emt 0:07:30]} Nxe5 {[%emt 0:00:30]} 15. Bxe5 {[%emt 0:00:00]} Bd6 {[%emt 0:01:30]} 16. Bxd6 {[%emt 0:03:00]} Qxd6 {[%emt 0:03:30]} 17. e5 {[%emt 0:07:30]} Qd5 {[%emt 0:01:30]} 18. Nd2 {[%emt 0:00:00]} Rd8 {[%emt 0:13:30]} 19. Ne4 {[%emt 0:01:00]} Kg7 {[%emt 0:01:30]} 20. Nf6 {[%emt 0:01:30]} Qc4 {[%emt 0:02:30]} 21. Qf3 {[%emt 0:00:30]} Be6 {[%emt 0:01:30]} 22. Rab1 {[%emt 0:01:30]} c5 {[%emt 0:03:30]} 23. d5 {[%emt 0:04:30]} Bxd5 {[%emt 0:00:00]} 24. Nxd5 {[%emt 0:00:00]} Qxd5 {[%emt 0:00:00]} 25. Qf6+ {[%emt 0:00:00]} Kh7 {[%emt 0:02:30]} 26. e6 {[%emt 0:00:30]} Qf5 {[%emt 0:03:30]} 27. Qxf5 {[%emt 0:02:30]} gxf5 {[%emt 0:00:30]} 28. e7 {[%emt 0:00:30]} Re8 {[%emt 0:00:30]} 29. Rxb7 {[%emt 0:00:30]} Kg7 {[%emt 0:00:30]} 30. Rxc7 {[%emt 0:00:30]} f6 {[%emt 0:00:30]} 31. Rxc5 {[%emt 0:00:30]} Rad8 {[%emt 0:00:30]} 32. Rc7 {[%emt 0:00:30]} Rd3 {[%emt 0:00:30]} 33. Rxa7 {[%emt 0:00:30]} Rxc3 {[%emt 0:00:30]} 34. a4 {[%emt 0:00:30]} Kf7 {[%emt 0:00:30]} 35. h3 {[%emt 0:00:30]} Ra3 {[%emt 0:00:30]} 36. Re3 {[%emt 0:00:30]} Ra1+ {[%emt 0:01:30]} 37. Kh2 {[%emt 0:00:30]} Ra2 {[%emt 0:00:30]} 38. f4 {[%emt 0:01:30]} Rb2 {[%emt 0:00:30]} 39. a5 {[%emt 0:00:30]} Ra2 {[%emt 0:00:30]} 40. a6 {[%emt 0:00:30]} h5 {[%emt 0:00:30]} 41. Rb3 {[%emt 0:03:30]} h4 {[%emt 0:03:30]} 42. Rb6 {[%emt 0:03:30]} Kg6 {[%emt 0:01:38]} 43. Rd7 {[%emt 0:01:30]} Kf7 {[%emt 0:04:14]} 44. Rdd6 {[%emt 0:00:30]} Rg8 {[%emt 0:01:38]} 45. Rxf6+ {[%emt 0:00:30]} Kxe7 {[%emt 0:06:58]} 46. Rg6 {[%emt 0:00:30]} Rd8 {[%emt 0:00:00]} 47. Rb7+ {[%emt 0:00:30]} Kf8 {[%emt 0:00:00]} 48. a7 {[%emt 0:00:30]} Ra5 {[%emt 0:00:00]} 49. Rb8 {[%emt 0:00:30]} Re8 {[%emt 0:00:00]} 50. Rh6 {[%emt 0:00:00]} 1-0

[Event "Istanbul Open 2017"]
[Site "Istanbul"]
[Date "2017.09.11"]
[Round "7"]
[White "Bagci, Hikmet"]
[Black "Kabadayi, Suleyman Arda"]
[Result "1-0"]
[ECO "B38"]
[WhiteElo "1706"]
[BlackElo "1579"]
[Annotator "NA RC"]
[PlyCount "67"]
[EventDate "2017.??.??"]
[EventType "swiss"]
[EventCountry "TUR"]
[SourceTitle "playchess.com"]
[Source "ChessBase"]
[SourceQuality "1"]
[TimeControl "5400+30"]

1. e4 {[%emt 0:00:30]} c5 {[%emt 0:01:00]} 2. Nf3 {[%emt 0:00:30]} g6 {[%emt 0:00:30]} 3. d4 {[%emt 0:00:30]} cxd4 {[%emt 0:00:00]} 4. Nxd4 {[%emt 0:00:30]} Bg7 {[%emt 0:00:00]} 5. c4 {[%emt 0:00:00]} Nc6 {[%emt 0:01:30]} 6. Be3 {[%emt 0:00:00]} Nf6 {[%emt 0:00:30]} 7. Nc3 {[%emt 0:00:30]} O-O {[%emt 0:00:30]} 8. Be2 {[%emt 0:00:30]} d6 {[%emt 0:01:30]} 9. h3 {[%emt 0:04:30]} Bd7 {[%emt 0:07:30]} 10. Qd2 {[%emt 0:00:30]} Nxd4 {[%emt 0:03:30]} 11. Bxd4 {[%emt 0:00:30]} Bc6 {[%emt 0:01:30]} 12. f3 {[%emt 0:01:30]} a5 {[%emt 0:08:30]} 13. g4 {[%emt 0:01:30]} e6 {[%emt 0:11:30]} 14. O-O-O {[%emt 0:00:30]} Ne8 {[%emt 0:13:30]} 15. Bxg7 {[%emt 0:00:30]} Kxg7 {[%emt 0:03:30]} 16. h4 {[%emt 0:00:30]} h6 {[%emt 0:05:30]} 17. Kb1 {[%emt 0:00:30]} Qe7 {[%emt 0:06:30]} 18. Rh3 {[%emt 0:06:30]} Rd8 {[%emt 0:07:30]} 19. Qe3 {[%emt 0:03:30]} Qc7 {[%emt 0:07:46]} 20. f4 {[%emt 0:04:30]} f6 {[%emt 0:07:15]} 21. f5 {[%emt 0:03:30]} exf5 {[%emt 0:04:17]} 22. gxf5 {[%emt 0:02:30]} gxf5 {[%emt 0:04:10]} 23. Rg1+ {[%emt 0:01:30]} Kh7 {[%emt 0:00:45]} 24. exf5 {[%emt 0:01:30]} Bd7 {[%emt 0:03:06]} 25. Qf4 {[%emt 0:00:30]} Qc5 {[%emt 0:00:36]} 26. Rf1 {[%emt 0:00:30]} Ng7 {[%emt 0:00:33]} 27. Bd3 {[%emt 0:00:30]} Rde8 {[%emt 0:00:29]} 28. Qg4 {[%emt 0:03:30]} h5 {[%emt 0:00:30]} 29. Qg6+ {[%emt 0:00:30]} Kg8 {[%emt 0:00:31]} 30. Nd5 {[%emt 0:00:30]} Qd4 {[%emt 0:00:29]} 31. Rg3 {[%emt 0:01:30]} Rf7 {[%emt 0:00:22]} 32. Qxh5 {[%emt 0:00:30]} Bc6 {[%emt 0:00:31]} 33. Rfg1 {[%emt 0:01:30]} Re5 {[%emt 0:00:34]} 34. Nxf6+ {[%emt 0:03:30]} 1-0

[Event "Istanbul Open 2017"]
[Site "Istanbul"]
[Date "2017.09.11"]
[Round "7"]
[White "Aslan, Nevzat"]
[Black "Ozen, Medeni"]
[Result "0-1"]
[ECO "C95"]
[WhiteElo "1681"]
[BlackElo "1718"]
[Annotator "NA RC"]
[PlyCount "70"]
[EventDate "2017.??.??"]
[EventType "swiss"]
[EventCountry "TUR"]
[SourceTitle "playchess.com"]
[Source "ChessBase"]
[SourceQuality "1"]
[TimeControl "5400+30"]

1. e4 {[%emt 0:00:30]} e5 {[%emt 0:01:00]} 2. Nf3 {[%emt 0:00:30]} Nc6 {[%emt 0:00:30]} 3. Bb5 {[%emt 0:00:30]} a6 {[%emt 0:00:30]} 4. Ba4 {[%emt 0:00:30]} Nf6 {[%emt 0:00:30]} 5. O-O {[%emt 0:00:30]} Be7 {[%emt 0:00:30]} 6. Re1 {[%emt 0:00:30]} b5 {[%emt 0:00:30]} 7. Bb3 {[%emt 0:00:30]} d6 {[%emt 0:00:30]} 8. c3 {[%emt 0:00:30]} O-O {[%emt 0:00:30]} 9. d4 {[%emt 0:00:30]} Nb8 {[%emt 0:00:30]} 10. h3 {[%emt 0:00:30]} Nbd7 {[%emt 0:00:30]} 11. Nbd2 {[%emt 0:00:00]} c5 {[%emt 0:05:30]} 12. Nf1 {[%emt 0:00:00]} cxd4 {[%emt 0:00:30]} 13. cxd4 {[%emt 0:00:30]} exd4 {[%emt 0:00:30]} 14. Nxd4 {[%emt 0:00:30]} Nc5 {[%emt 0:00:30]} 15. Bc2 {[%emt 0:00:30]} Bb7 {[%emt 0:09:30]} 16. Ng3 {[%emt 0:03:30]} g6 {[%emt 0:00:30]} 17. b4 {[%emt 0:05:30]} Ncd7 {[%emt 0:00:30]} 18. Bb2 {[%emt 0:00:30]} Ne5 {[%emt 0:00:30]} 19. Rc1 {[%emt 0:00:30]} Rc8 {[%emt 0:00:30]} 20. Qe2 {[%emt 0:10:30]} Re8 {[%emt 0:19:30]} 21. Bb3 {[%emt 0:00:30]} Qb6 {[%emt 0:00:30]} 22. Kh2 {[%emt 0:03:30]} Rxc1 {[%emt 0:00:30]} 23. Rxc1 {[%emt 0:00:30]} Bf8 {[%emt 0:08:30]} 24. f3 {[%emt 0:13:30]} Bh6 {[%emt 0:06:30]} 25. Rd1 {[%emt 0:14:30]} Bf4 {[%emt 0:00:30]} 26. Qc2 {[%emt 0:00:30]} Rc8 {[%emt 0:00:30]} 27. Qb1 {[%emt 0:00:30]} Nh5 {[%emt 0:00:30]} 28. Nde2 {[%emt 0:00:30]} Qf2 {[%emt 0:00:30]} 29. Nxf4 {[%emt 0:00:30]} Qxg3+ {[%emt 0:01:30]} 30. Kh1 {[%emt 0:00:00]} Nxf4 {[%emt 0:01:30]} 31. Rd2 {[%emt 0:01:00]} Nxf3 {[%emt 0:01:30]} 32. gxf3 {[%emt 0:02:30]} Qxf3+ {[%emt 0:00:30]} 33. Kg1 {[%emt 0:02:30]} Qg3+ {[%emt 0:02:30]} 34. Kh1 {[%emt 0:00:30]} Qf3+ {[%emt 0:00:30]} 35. Kg1 {[%emt 0:00:30]} Qe3+ {[%emt 0:00:00]} 0-1

[Event "Istanbul Open 2017"]
[Site "Istanbul"]
[Date "2017.09.11"]
[Round "7"]
[White "Adanmis, Ezgi"]
[Black "Aydin, Ali Umut"]
[Result "1-0"]
[ECO "C01"]
[WhiteElo "1626"]
[BlackElo "1627"]
[Annotator "NA RC"]
[PlyCount "99"]
[EventDate "2017.??.??"]
[EventType "swiss"]
[EventCountry "TUR"]
[SourceTitle "playchess.com"]
[Source "ChessBase"]
[SourceQuality "1"]
[TimeControl "5400+30"]

1. e4 {[%emt 0:00:30]} e6 {[%emt 0:01:00]} 2. d4 {[%emt 0:00:00]} d5 {[%emt 0:00:00]} 3. exd5 {[%emt 0:01:00]} exd5 {[%emt 0:00:00]} 4. Bd3 {[%emt 0:00:00]} Nc6 {[%emt 0:00:00]} 5. Nf3 {[%emt 0:01:00]} Bd6 {[%emt 0:01:00]} 6. O-O {[%emt 0:00:30]} Bg4 {[%emt 0:00:30]} 7. Re1+ {[%emt 0:00:30]} Nge7 {[%emt 0:00:30]} 8. c3 {[%emt 0:01:30]} Qd7 {[%emt 0:00:30]} 9. Nbd2 {[%emt 0:01:30]} O-O-O {[%emt 0:03:30]} 10. b4 {[%emt 0:00:30]} Ng6 {[%emt 0:02:30]} 11. Qa4 {[%emt 0:03:30]} Rde8 {[%emt 0:15:30]} 12. Bb2 {[%emt 0:03:30]} a6 {[%emt 0:04:30]} 13. b5 {[%emt 0:05:30]} Na7 {[%emt 0:00:30]} 14. Ne5 {[%emt 0:14:30]} Bxe5 {[%emt 0:09:30]} 15. dxe5 {[%emt 0:10:30]} Nxe5 {[%emt 0:01:30]} 16. Rxe5 {[%emt 0:00:30]} Rxe5 {[%emt 0:01:30]} 17. Qd4 {[%emt 0:00:30]} Qe6 {[%emt 0:21:30]} 18. Qxa7 {[%emt 0:00:00]} Be2 {[%emt 0:18:41]} 19. Bxe2 {[%emt 0:32:00]} Rxe2 {[%emt 0:00:14]} 20. bxa6 {[%emt 0:13:20]} bxa6 {[%emt 0:06:46]} 21. Qd4 {[%emt 0:02:13]} Re8 {[%emt 0:00:50]} 22. g3 {[%emt 0:01:31]} Qh3 {[%emt 0:02:02]} 23. Rf1 {[%emt 0:01:14]} R8e6 {[%emt 0:01:49]} 24. Ba3 {[%emt 0:03:37]} Rxd2 {[%emt 0:01:53]} 25. Qxd2 {[%emt 0:00:08]} Rh6 {[%emt 0:00:02]} 26. f3 {[%emt 0:00:30]} Qe6 {[%emt 0:02:28]} 27. Bc5 {[%emt 0:01:09]} Qc6 {[%emt 0:01:04]} 28. Bd4 {[%emt 0:00:06]} Qc4 {[%emt 0:01:09]} 29. Qf4 {[%emt 0:01:02]} Qxa2 {[%emt 0:00:26]} 30. Rf2 {[%emt 0:00:16]} Qb1+ {[%emt 0:00:56]} 31. Kg2 {[%emt 0:00:04]} Qg6 {[%emt 0:01:31]} 32. Qg4+ {[%emt 0:01:21]} f5 {[%emt 0:02:00]} 33. Qf4 {[%emt 0:00:20]} Qh5 {[%emt 0:00:22]} 34. h4 {[%emt 0:00:25]} Re6 {[%emt 0:00:27]} 35. Bxg7 {[%emt 0:00:41]} Qg6 {[%emt 0:00:29]} 36. Be5 {[%emt 0:00:28]} Rc6 {[%emt 0:00:09]} 37. Qa4 {[%emt 0:00:43]} Rc4 {[%emt 0:00:23]} 38. Qa5 {[%emt 0:00:19]} Qe6 {[%emt 0:01:13]} 39. Bd4 {[%emt 0:00:18]} h5 {[%emt 0:00:27]} 40. Qa2 {[%emt 0:00:56]} f4 {[%emt 0:00:20]} 41. Re2 {[%emt 0:00:28]} Qg6 {[%emt 0:00:05]} 42. Bf2 {[%emt 0:00:11]} fxg3 {[%emt 0:00:59]} 43. Bxg3 {[%emt 0:00:15]} Rxh4 {[%emt 0:00:39]} 44. Qxd5 {[%emt 0:00:09]} Ra4 {[%emt 0:00:27]} 45. Qa8+ {[%emt 0:01:04]} Kd7 {[%emt 0:00:05]} 46. Rd2+ {[%emt 0:00:17]} Ke7 {[%emt 0:00:12]} 47. Re2+ {[%emt 0:00:49]} Kd7 {[%emt 0:00:24]} 48. Qd5+ {[%emt 0:01:03]} Kc8 {[%emt 0:00:18]} 49. Re6 {[%emt 0:01:00]} Qg8 {[%emt 0:01:33]} 50. Qa8+ {[%emt 0:00:06]} 1-0

[Event "Istanbul Open 2017"]
[Site "Istanbul"]
[Date "2017.09.11"]
[Round "7"]
[White "Toksan, Hayati"]
[Black "Sar, Can"]
[Result "0-1"]
[ECO "B35"]
[WhiteElo "1454"]
[BlackElo "1669"]
[Annotator "NA RC"]
[PlyCount "124"]
[EventDate "2017.??.??"]
[EventType "swiss"]
[EventCountry "TUR"]
[SourceTitle "playchess.com"]
[Source "ChessBase"]
[SourceQuality "1"]
[TimeControl "5400+30"]

1. e4 {[%emt 0:17:30]} c5 {[%emt 0:01:00]} 2. Nf3 {[%emt 0:00:30]} g6 {[%emt 0:00:30]} 3. Nc3 {[%emt 0:00:30]} Bg7 {[%emt 0:00:00]} 4. d4 {[%emt 0:01:30]} cxd4 {[%emt 0:00:00]} 5. Nxd4 {[%emt 0:00:30]} Nc6 {[%emt 0:00:30]} 6. Be3 {[%emt 0:00:30]} Nf6 {[%emt 0:00:00]} 7. f3 {[%emt 0:00:00]} O-O {[%emt 0:00:00]} 8. Bc4 {[%emt 0:00:00]} Qb6 {[%emt 0:00:30]} 9. Ncb5 {[%emt 0:20:30]} a6 {[%emt 0:07:30]} 10. Nf5 {[%emt 0:01:30]} Qd8 {[%emt 0:00:30]} 11. Nh6+ {[%emt 0:05:30]} Bxh6 {[%emt 0:02:30]} 12. Bxh6 {[%emt 0:00:30]} axb5 {[%emt 0:00:00]} 13. Bxf8 {[%emt 0:00:30]} Kxf8 {[%emt 0:00:00]} 14. Be2 {[%emt 0:00:30]} Qa5+ {[%emt 0:01:30]} 15. c3 {[%emt 0:01:30]} Qb6 {[%emt 0:01:30]} 16. a3 {[%emt 0:02:30]} d6 {[%emt 0:00:30]} 17. Qb3 {[%emt 0:01:30]} b4 {[%emt 0:04:30]} 18. cxb4 {[%emt 0:05:30]} Nd4 {[%emt 0:00:00]} 19. Qc3 {[%emt 0:00:30]} Bd7 {[%emt 0:01:00]} 20. Rd1 {[%emt 0:02:30]} e5 {[%emt 0:00:30]} 21. Rc1 {[%emt 0:01:30]} Bc6 {[%emt 0:07:30]} 22. Bd1 {[%emt 0:00:30]} Kg7 {[%emt 0:02:30]} 23. a4 {[%emt 0:09:30]} Bxa4 {[%emt 0:00:30]} 24. Ra1 {[%emt 0:02:30]} Bxd1 {[%emt 0:13:30]} 25. Rxa8 {[%emt 0:00:30]} Ba4 {[%emt 0:01:30]} 26. Rxa4 {[%emt 0:03:30]} Qb5 {[%emt 0:00:30]} 27. Qd2 {[%emt 0:00:30]} Qxa4 {[%emt 0:00:00]} 28. O-O {[%emt 0:00:30]} Qb5 {[%emt 0:02:00]} 29. g3 {[%emt 0:01:30]} h5 {[%emt 0:01:30]} 30. Kg2 {[%emt 0:00:39]} Nc6 {[%emt 0:00:30]} 31. Qxd6 {[%emt 0:00:42]} Nxb4 {[%emt 0:00:30]} 32. Qd2 {[%emt 0:02:47]} Nc6 {[%emt 0:02:30]} 33. Ra1 {[%emt 0:01:02]} Nd4 {[%emt 0:02:30]} 34. Ra5 {[%emt 0:01:00]} Qb3 {[%emt 0:00:30]} 35. Ra3 {[%emt 0:07:30]} Qc4 {[%emt 0:00:30]} 36. Rc3 {[%emt 0:01:54]} Qb4 {[%emt 0:00:30]} 37. Rd3 {[%emt 0:01:36]} Qa4 {[%emt 0:01:30]} 38. h3 {[%emt 0:02:27]} Qc6 {[%emt 0:01:30]} 39. Qc3 {[%emt 0:00:43]} Qe6 {[%emt 0:01:30]} 40. Re3 {[%emt 0:01:22]} b5 {[%emt 0:05:30]} 41. Qa5 {[%emt 0:02:43]} Qc6 {[%emt 0:00:30]} 42. Rc3 {[%emt 0:00:25]} Qd6 {[%emt 0:01:30]} 43. Rc8 {[%emt 0:00:48]} Nc6 {[%emt 0:03:30]} 44. Qc3 {[%emt 0:00:50]} Nd4 {[%emt 0:00:30]} 45. Qc5 {[%emt 0:00:36]} Ne8 {[%emt 0:03:30]} 46. Qa7 {[%emt 0:00:48]} Qe6 {[%emt 0:00:30]} 47. Qb8 {[%emt 0:00:32]} Kf8 {[%emt 0:01:30]} 48. Qa8 {[%emt 0:00:28]} b4 {[%emt 0:01:30]} 49. Rc5 {[%emt 0:00:26]} Qe7 {[%emt 0:00:30]} 50. Qd5 {[%emt 0:00:34]} f6 {[%emt 0:02:30]} 51. f4 {[%emt 0:00:14]} Ne6 {[%emt 0:00:30]} 52. Rc2 {[%emt 0:00:40]} exf4 {[%emt 0:00:30]} 53. g4 {[%emt 0:00:40]} h4 {[%emt 0:01:30]} 54. Re2 {[%emt 0:00:31]} Ng5 {[%emt 0:00:30]} 55. Re1 {[%emt 0:00:25]} f3+ {[%emt 0:00:30]} 56. Kf2 {[%emt 0:00:20]} Qa7+ {[%emt 0:00:30]} 57. Re3 {[%emt 0:00:31]} Nxh3+ {[%emt 0:00:30]} 58. Kxf3 {[%emt 0:00:20]} Ng5+ {[%emt 0:00:30]} 59. Ke2 {[%emt 0:00:12]} Qa6+ {[%emt 0:01:30]} 60. Kd2 {[%emt 0:01:11]} Qd6 {[%emt 0:00:00]} 61. Qxd6+ {[%emt 0:00:31]} Nxd6 {[%emt 0:00:00]} 62. e5 {[%emt 0:00:05]} Nc4+ {[%emt 0:00:00]} 0-1

[Event "Istanbul Open 2017"]
[Site "Istanbul"]
[Date "2017.09.16"]
[Round "8"]
[White "Darban, Morteza"]
[Black "Bashirli, Nail"]
[Result "1-0"]
[ECO "B67"]
[WhiteElo "2300"]
[BlackElo "2352"]
[Annotator "ChessBase"]
[PlyCount "93"]
[EventDate "2017.??.??"]
[EventType "swiss"]
[EventCountry "TUR"]
[SourceTitle "playchess.com"]
[Source "ChessBase"]
[SourceQuality "1"]
[TimeControl "5400+30"]

1. e4 c5 2. Nc3 d6 3. Nge2 Nc6 4. d4 cxd4 5. Nxd4 Nf6 6. Bg5 e6 7. Qd2 a6 8. O-O-O Bd7 9. f3 b5 10. Kb1 Qc7 11. Bxb5 axb5 12. Ndxb5 Qb8 13. Nxd6+ Bxd6 14. Qxd6 Qxd6 15. Rxd6 Ne7 16. Rhd1 Bc6 17. Ne2 Rc8 18. Nd4 h6 19. Nxc6 Nxc6 20. Be3 O-O {[%emt 1:10:30]} 21. b3 {[%emt 1:38:34]} Ne8 {[%emt 0:01:30]} 22. Rd7 {[%emt 0:01:35]} Nc7 {[%emt 0:00:30]} 23. c4 {[%emt 0:00:38]} e5 {[%emt 0:00:30]} 24. a3 {[%emt 0:00:42]} Ne6 {[%emt 0:00:30]} 25. R1d5 {[%emt 0:00:44]} Rfe8 {[%emt 0:00:30]} 26. Kb2 {[%emt 0:00:10]} g5 {[%emt 0:00:30]} 27. Bb6 {[%emt 0:00:36]} Kg7 {[%emt 0:00:30]} 28. a4 {[%emt 0:00:30]} h5 {[%emt 0:00:30]} 29. Kc3 {[%emt 0:00:30]} g4 {[%emt 0:00:30]} 30. b4 {[%emt 0:00:30]} Ncd4 {[%emt 0:00:30]} 31. b5 {[%emt 0:00:30]} gxf3 {[%emt 0:00:30]} 32. gxf3 {[%emt 0:00:30]} Nxf3 {[%emt 0:00:30]} 33. a5 {[%emt 0:00:30]} Neg5 {[%emt 0:00:30]} 34. Rd8 {[%emt 0:00:30]} Nxe4+ {[%emt 0:00:30]} 35. Kb4 {[%emt 0:00:30]} Nf6 {[%emt 0:00:30]} 36. Rd1 {[%emt 0:00:30]} e4 {[%emt 0:00:30]} 37. Rxe8 {[%emt 0:00:30]} Nxe8 {[%emt 0:00:30]} 38. a6 {[%emt 0:00:30]} Kg6 {[%emt 0:00:30]} 39. Rd8 {[%emt 0:00:30]} Rxd8 {[%emt 0:00:30]} 40. Bxd8 {[%emt 0:00:30]} e3 {[%emt 0:00:30]} 41. Bb6 {[%emt 0:00:30]} e2 {[%emt 0:00:30]} 42. Bf2 {[%emt 0:00:30]} Nd6 {[%emt 0:00:30]} 43. a7 {[%emt 0:00:30]} Ne4 {[%emt 0:00:30]} 44. a8=Q {[%emt 0:00:30]} Nxf2 {[%emt 0:00:30]} 45. Qc6+ {[%emt 0:00:22]} Kg7 {[%emt 0:00:30]} 46. Qxf3 {[%emt 0:00:16]} e1=Q+ {[%emt 0:00:00]} 47. Qc3+ {[%emt 0:00:00]} 1-0

[Event "Istanbul Open 2017"]
[Site "Istanbul"]
[Date "2017.09.16"]
[Round "8"]
[White "Karaokcu, Erkin"]
[Black "Iyti, Basher"]
[Result "0-1"]
[ECO "A11"]
[WhiteElo "2206"]
[BlackElo "2303"]
[Annotator "NA"]
[PlyCount "26"]
[EventDate "2017.??.??"]
[EventType "swiss"]
[EventCountry "TUR"]
[SourceTitle "playchess.com"]
[Source "ChessBase"]
[SourceQuality "1"]
[TimeControl "5400+30"]

1. Nf3 {[%emt 0:01:30]} Nf6 {[%emt 0:02:00]} 2. c4 {[%emt 0:01:30]} c6 {[%emt 0:00:30]} 3. g3 {[%emt 0:00:00]} d5 {[%emt 0:00:00]} 4. Bg2 {[%emt 0:00:00]} g6 {[%emt 0:03:00]} 5. Qa4 {[%emt 0:01:30]} d4 {[%emt 0:04:30]} 6. b4 {[%emt 0:05:30]} Bg7 {[%emt 0:03:30]} 7. Bb2 $11 {[%emt 0:01:30]} Nfd7 {[%emt 0:05:30]} 8. e3 {[%emt 0:03:30]} e5 {[%emt 0:00:30]} 9. exd4 {[%emt 0:01:30]} exd4 {[%emt 0:00:30]} 10. O-O {[%emt 0:00:00]} O-O {[%emt 0:00:30]} 11. Na3 {[%emt 0:03:00]} a5 {[%emt 0:05:30]} 12. Nc2 {[%emt 0:02:30]} Nb6 {[%emt 0:00:30]} 13. Qb3 {[%emt 0:00:30]} a4 {[%emt 0:01:30]} 0-1